bitfinex/quotes_ETHUSD_20240608
["timestamp","ask_amount","ask_price","bid_price","bid_amount"]
[1717879074122,4.39285466,3674.8,3674.7,0.1232665]
[1717879080588,5.92985466,3674.8,3674.7,0.1232665]
[1717879080901,7.19996558,3674.8,3674.7,0.1232665]
[1717879082324,7.56323017,3674.8,3674.7,0.1232665]
[1717879082526,8.41864409,3674.8,3674.7,0.1232665]
[1717879083232,8.79903187,3674.8,3674.7,0.1232665]
[1717879088532,9.38732709,3674.8,3674.7,0.1232665]
[1717879091505,11.69762709,3674.8,3674.7,0.1232665]
[1717879093218,11.01182539,3674.8,3674.7,0.1232665]
[1717879093818,9.47482539,3674.8,3674.7,0.1232665]
[1717879094040,10.11582539,3674.8,3674.7,0.1232665]
[1717879098421,9.47482539,3674.8,3674.7,0.1232665]
[1717879098737,10.11582539,3674.8,3674.7,0.1232665]
[1717879101944,10.80162709,3674.8,3674.7,0.1232665]
[1717879102154,12.21217823,3674.8,3674.7,0.1232665]
[1717879102515,10.80162709,3674.8,3674.7,0.1232665]
[1717879103145,12.21217823,3674.8,3674.7,0.1232665]
[1717879103339,11.90676431,3674.8,3674.7,0.1232665]
[1717879103714,11.90673532,3674.8,3674.7,0.1232665]
[1717879104247,10.49618418,3674.8,3674.7,0.1232665]
[1717879104727,11.90848586,3674.8,3674.7,0.1232665]
[1717879105217,10.49618418,3674.8,3674.7,0.1232665]
[1717879106212,12.18884554,3674.8,3674.7,0.1232665]
[1717879106620,12.49425946,3674.8,3674.7,0.1232665]
[1717879107021,10.8015981,3674.8,3674.7,0.1232665]
[1717879108764,9.75253181,3674.8,3674.7,0.1232665]
[1717879109060,6.25123181,3674.8,3674.7,0.1232665]
[1717879109361,5.62212089,3674.8,3674.7,0.1232665]
[1717879112158,7.60270757,3674.8,3674.7,0.1232665]
[1717879112943,7.96597216,3674.8,3674.7,0.1232665]
[1717879114161,5.98538548,3674.8,3674.7,0.1232665]
[1717879114367,7.43484869,3674.8,3674.7,0.1232665]
[1717879114840,2.72153,3674.4,3673.7,2.2514]
[1717879115045,0.641,3673.8,3673.7,2.2514]
[1717879115246,2.03385466,3673.8,3673.7,2.2514]
[1717879116077,4.75582466,3673.8,3673.7,2.2514]
[1717879116282,7.75582466,3673.8,3673.7,2.2514]
[1717879116444,8.34409089,3673.8,3673.7,2.2514]
[1717879117574,2.72231,3673.4,3673.2,0.03589304]
[1717879117778,6.73636828,3673.3,3673.2,0.03589304]
[1717879118003,2.7225,3673.1,3672.6,2.5]
[1717879118279,2.34131142,3672.7,3672.6,2.5]
[1717879118439,3.73416608,3672.7,3672.6,2.5]
[1717879118644,6.73416608,3672.7,3672.6,2.5]
[1717879118844,7.32243231,3672.7,3672.6,2.5]
[1717879119278,5.62212089,3672.7,3672.6,2.5]
[1717879119437,6.47202978,3672.7,3672.6,2.5]
[1717879119945,7.37002978,3672.7,3672.6,2.5]
[1717879120379,6.78176355,3672.7,3672.6,2.5]
[1717879121389,6.23176355,3672.7,3672.6,2.5]
[1717879122498,7.64550904,3672.7,3672.6,2.5]
[1717879122864,6.23176355,3672.7,3672.6,2.5]
[1717879123109,7.64550904,3672.7,3672.6,2.5]
[1717879123402,6.23176355,3672.7,3672.6,2.5]
[1717879124866,5.93185466,3672.7,3672.6,2.5]
[1717879125069,4.39285466,3672.7,3672.6,2.5]
[1717879125365,2.72265,3672.9,3672.6,2.5]
[1717879125366,3.0,3672.8,3672.6,2.5]
[1717879125622,3.0,3672.8,3672.7,2.256]
[1717879129693,2.72265,3672.9,3672.7,2.256]
[1717879131271,2.72265,3672.9,3672.7,2.4816]
[1717879131767,1.41374549,3673.1,3672.7,2.4816]
[1717879132012,1.41374549,3673.1,3672.8,0.40126136]
[1717879132311,1.41374549,3673.1,3672.9,2.256]
[1717879134628,7.43,3673.3,3672.9,2.256]
[1717879136730,2.72233,3673.4,3672.9,2.256]
[1717879137017,3.0,3673.3,3672.9,2.4816]
[1717879138388,3.0,3673.3,3673.0,0.40091079]
[1717879138615,3.0,3673.3,3672.9,2.4816]
[1717879138791,3.0,3673.3,3673.1,0.40084995]
[1717879138992,3.0,3673.3,3672.9,2.4816]
[1717879139322,3.0,3673.3,3673.2,2.4397]
[1717879139924,3.0,3673.3,3673.2,2.8404891]
[1717879141639,0.0471267,3674.3,3673.2,2.8404891]
[1717879141640,2.72197,3673.9,3673.2,2.8404891]
[1717879141989,3.0,3673.8,3673.2,2.4397]
[1717879142229,2.72207,3673.7,3673.2,2.4397]
[1717879142390,3.0,3673.6,3673.2,2.4397]
[1717879142905,3.0,3673.6,3673.3,0.40057799]
[1717879143092,3.0,3673.6,3673.2,2.4397]
[1717879143427,3.0,3673.6,3673.4,2.4397]
[1717879143727,3.0,3673.6,3673.5,0.40045632]
[1717879145396,2.72207,3673.7,3673.5,0.40045632]
[1717879147144,3.0,3674.0,3673.6,2.476]
[1717879148404,3.0,3674.0,3673.7,0.40033466]
[1717879148595,2.72176,3674.1,3673.7,0.40033466]
[1717879148801,2.72176,3674.1,3673.6,2.476]
[1717879149738,3.0,3674.4,3673.6,2.7877]
[1717879149935,3.0,3674.4,3673.7,2.87624245]
[1717879150098,3.0,3674.4,3673.7,2.476]
[1717879151505,3.0,3674.4,3673.8,0.40018163]
[1717879151702,3.0,3674.4,3673.7,2.476]
[1717879151944,3.0,3674.4,3673.8,0.40018163]
[1717879152103,3.0,3674.4,3673.7,2.81887]
[1717879152446,3.0,3674.4,3673.8,0.40018163]
[1717879152798,3.0,3674.4,3673.7,2.81887]
[1717879153007,3.0,3674.4,3674.0,2.476]
[1717879153451,3.0,3674.4,3674.1,0.39999917]
[1717879157326,3.0,3674.4,3674.2,2.476]
[1717879158866,3.641,3674.8,3674.2,2.476]
[1717879160211,3.641,3674.8,3674.3,0.39962828]
[1717879160716,3.641,3674.8,3674.4,0.39956748]
[1717879161060,3.0,3674.8,3674.2,3.117]
[1717879161264,3.0,3674.8,3674.3,3.059877]
[1717879161554,3.0,3674.8,3674.3,3.4593619]
[1717879166534,2.72117,3674.9,3674.3,3.4593619]
[1717879166962,2.72086,3675.4,3674.7,0.641]
[1717879167277,0.641,3675.8,3675.0,2.2547]
[1717879167624,0.641,3675.8,3675.1,0.39864014]
[1717879169033,2.72062,3675.7,3675.1,0.39864014]
[1717879169239,3.0,3675.6,3675.1,0.39864014]
[1717879169847,3.641,3675.6,3675.1,0.39864014]
[1717879170753,3.0,3675.6,3675.1,0.39864014]
[1717879175231,3.0,3675.6,3675.2,0.32943401]
[1717879175633,3.0,3675.6,3675.3,0.39840939]
[1717879176070,3.0,3675.6,3675.2,0.32943401]
[1717879176230,3.0,3675.6,3675.4,0.39833838]
[1717879176431,3.0,3675.6,3675.0,2.2547]
[1717879176658,3.0,3675.6,3675.5,0.39827761]
[1717879176882,3.0,3675.6,3675.0,2.54427]
[1717879177042,3.0,3675.6,3675.5,2.68077761]
[1717879177372,3.0,3675.6,3675.5,2.68055237]
[1717879189716,3.0,3675.6,3675.5,0.39805237]
[1717879189923,3.0,3675.6,3675.3,2.4565]
[1717879190211,3.0,3675.6,3675.4,0.39792551]
[1717879198707,3.58796444,3675.6,3675.4,0.39792551]
[1717879199105,3.0,3675.6,3675.4,0.39792551]
[1717879201913,3.0,3675.6,3675.3,2.4565]
[1717879202333,3.0,3675.6,3675.4,0.39785729]
[1717879202720,3.0,3675.6,3675.3,2.4565]
[1717879202917,3.0,3675.6,3675.4,0.39785729]
[1717879203324,3.0,3675.6,3675.3,2.4565]
[1717879203528,3.0,3675.6,3674.8,2.4565]
[1717879203714,3.0,3675.6,3674.9,1.55693178]
[1717879203715,3.58795806,3675.6,3674.9,1.55693178]
[1717879203914,3.0,3675.6,3674.9,1.55693178]
[1717879206519,3.58795806,3675.6,3674.9,1.55693178]
[1717879207730,2.72073,3675.5,3674.9,0.39815778]
[1717879207925,2.4193,3675.4,3674.5,3.0532]
[1717879208143,4.42499251,3675.4,3674.6,0.39834016]
[1717879208323,1.41773445,3675.3,3674.5,3.0532]
[1717879208524,2.00569251,3675.4,3674.7,0.641]
[1717879208724,1.41773445,3675.4,3674.8,0.39821857]
[1717879209147,4.72642251,3675.5,3674.7,0.641]
[1717879209361,1.41773445,3675.4,3674.7,0.641]
[1717879209549,4.72642251,3675.5,3674.7,0.641]
[1717879210333,1.41773445,3675.4,3674.8,2.4122]
[1717879210678,1.41773445,3675.4,3674.9,0.641]
[1717879210887,1.41773445,3675.4,3675.0,2.4122]
[1717879211062,1.41773445,3675.5,3675.0,2.81029699]
[1717879212445,1.41773445,3675.4,3675.0,2.81029699]
[1717879213066,1.41773445,3675.4,3675.1,0.641]
[1717879213280,1.41773445,3675.4,3675.2,0.3451297]
[1717879213426,1.41773445,3675.4,3675.2,0.74315287]
[1717879213621,1.41773445,3675.4,3675.2,0.3451297]
[1717879213881,1.41773445,3675.4,3675.3,0.3979624]
[1717879214235,1.41773445,3675.4,3675.1,0.641]
[1717879214434,1.41773445,3675.4,3675.1,0.98321066]
[1717879214768,1.41773445,3675.5,3675.2,0.39800271]
[1717879222086,1.42200764,3675.5,3675.2,0.39800271]
[1717879222500,1.42200764,3675.5,3675.3,3.0532]
[1717879222792,1.42200764,3675.8,3675.4,0.39788116]
[1717879223151,1.42200764,3675.7,3675.3,3.39274107]
[1717879223344,1.42200764,3675.7,3675.4,0.77137633]
[1717879223785,1.42200764,3675.8,3675.4,0.77137633]
[1717879224085,1.42200764,3675.8,3675.4,0.39788116]
[1717879224287,1.42200764,3675.8,3675.3,3.0532]
[1717879225824,1.42200764,3675.9,3675.3,3.0532]
[1717879226025,1.42200764,3675.8,3675.3,3.0532]
[1717879226385,1.42200764,3675.9,3675.3,3.0532]
[1717879226593,1.42200764,3675.9,3675.3,3.39274107]
[1717879227591,3.58790327,3676.1,3675.3,3.39274107]
[1717879227592,1.42200764,3675.8,3675.3,3.39274107]
[1717879227932,1.42200764,3675.8,3675.3,3.0532]
[1717879230338,3.58790327,3676.1,3675.3,3.0532]
[1717879230339,1.42200764,3675.9,3675.3,3.0532]
[1717879230545,0.0165,3675.8,3675.3,3.0532]
[1717879232569,1.43850764,3675.8,3675.3,3.0532]
[1717879233168,0.0165,3675.8,3675.3,3.0532]
[1717879233461,0.0165,3675.8,3675.3,3.39274107]
[1717879233851,0.0165,3675.8,3675.4,0.39774472]
[1717879234170,1.43850764,3675.8,3675.4,0.39774472]
[1717879235033,0.0165,3675.8,3675.4,0.39774472]
[1717879239293,0.0165,3675.8,3675.5,3.0084]
[1717879239444,0.0165,3675.8,3675.6,0.37456858]
[1717879239647,0.0165,3675.8,3675.6,0.77222586]
[1717879241951,0.0165,3675.8,3675.7,3.0084]
[1717879242195,0.0165,3675.8,3675.7,3.40595217]
[1717879262922,0.0165,3675.8,3675.7,2.76495217]
[1717879263123,0.0165,3675.8,3675.7,3.99197125]
[1717879263434,2.3263,3676.5,3675.7,3.99197125]
[1717879264025,2.3263,3676.5,3675.7,3.35097125]
[1717879264260,2.9673,3676.5,3675.7,0.98357125]
[1717879264438,2.9673,3676.5,3675.7,0.39755217]
[1717879265958,0.0165,3675.8,3675.7,0.39755217]
[1717879267845,0.0165,3675.8,3675.1,2.72098]
[1717879268049,0.0165,3675.8,3675.7,0.38384984]
[1717879268361,0.0165,3675.8,3675.1,2.72098]
[1717879268539,0.6575,3675.8,3675.7,0.38392745]
[1717879268721,0.6575,3675.8,3675.1,3.297538]
[1717879268917,0.6575,3675.8,3675.7,0.38392745]
[1717879269152,0.6575,3675.8,3675.1,3.297538]
[1717879269354,0.6575,3675.8,3675.2,0.6342138]
[1717879269558,0.6575,3675.8,3675.2,1.01854634]
[1717879272415,0.0165,3675.8,3675.2,1.01854634]
[1717879273050,0.0165,3675.8,3675.4,2.4036]
[1717879273453,0.0165,3675.8,3675.5,0.38415022]
[1717879273676,0.0165,3675.8,3675.5,0.79044662]
[1717879281398,0.0165,3675.8,3675.5,0.38415022]
[1717879281600,4.77992113,3676.1,3675.5,0.38415022]
[1717879281756,4.77992113,3676.1,3675.2,0.6342138]
[1717879282289,4.77992113,3676.1,3675.3,0.384319]
[1717879282797,2.3994,3676.0,3675.3,0.384319]
[1717879283002,0.641,3675.9,3675.3,0.384319]
[1717879283166,2.3994,3675.8,3675.3,0.384319]
[1717879283360,2.3994,3675.8,3675.1,2.72098]
[1717879283634,2.3994,3675.8,3675.4,0.38425822]
[1717879283904,2.3994,3675.8,3675.1,2.72098]
[1717879284129,2.3994,3675.8,3675.2,0.336198]
[1717879284560,0.641,3675.6,3674.7,2.72129]
[1717879284764,0.641,3675.6,3675.3,0.3843055]
[1717879284974,0.641,3675.6,3674.7,4.75514466]
[1717879285220,0.641,3675.6,3675.4,0.38424472]
[1717879285373,0.641,3675.6,3674.7,4.75514466]
[1717879285572,1.41859113,3675.7,3674.8,0.71587447]
[1717879285777,1.41859113,3675.7,3674.8,1.10048388]
[1717879287310,5.76095,3675.8,3674.8,1.10048388]
[1717879287311,7.17954113,3675.8,3674.8,1.10048388]
[1717879288303,0.641,3675.6,3674.8,1.10048388]
[1717879291509,2.72072,3675.5,3674.8,1.10048388]
[1717879291813,2.4893,3675.4,3674.8,0.38460941]
[1717879291987,2.4893,3675.4,3674.8,1.02560941]
[1717879292189,2.4893,3675.4,3674.8,0.641]
[1717879292487,2.4893,3675.4,3674.9,0.38454862]
[1717879295114,2.5058,3675.4,3674.9,0.38454862]
[1717879295911,2.5058,3675.4,3674.7,0.641]
[1717879296210,2.5058,3675.4,3675.0,0.38469034]
[1717879296420,2.5058,3675.4,3674.8,0.30446]
[1717879296622,2.5058,3675.4,3675.1,0.38462955]
[1717879296916,2.5058,3675.4,3674.8,0.30446]
[1717879297212,2.5058,3675.4,3675.2,0.38456877]
[1717879297377,2.5058,3675.4,3674.7,0.641]
[1717879297582,2.5058,3675.4,3675.3,0.384508]
[1717879297817,2.5058,3675.4,3674.7,0.94546]
[1717879298319,2.5058,3675.4,3674.8,0.38481191]
[1717879300829,0.0165,3675.4,3674.8,0.38481191]
[1717879303511,0.0165,3675.4,3675.1,2.3715]
[1717879303697,0.0165,3675.4,3675.2,0.30125]
[1717879304101,0.0165,3675.4,3675.3,0.3845215]
[1717879304427,0.0165,3675.4,3675.2,0.30125]
[1717879304595,0.0165,3675.4,3675.3,0.3845215]
[1717879304922,0.0165,3675.4,3675.2,0.30125]
[1717879305229,0.0165,3675.4,3675.3,0.7158965]
[1717879323627,4.14058284,3676.0,3675.3,0.7158965]
[1717879324041,4.14058284,3676.0,3675.3,0.331375]
[1717879324248,4.14058284,3676.0,3675.4,0.38432236]
[1717879324461,4.14058284,3676.0,3675.3,0.331375]
[1717879326840,1.42017284,3676.0,3675.3,0.331375]
[1717879327037,1.42017284,3676.0,3675.4,0.3343875]
[1717879329153,1.4208228,3676.0,3675.4,0.3343875]
[1717879329934,1.4208228,3676.0,3675.4,0.3178875]
[1717879330131,1.4208228,3676.0,3675.4,0.9588875]
[1717879333634,4.4208228,3676.1,3675.4,0.9588875]
[1717879334040,1.4208228,3676.0,3675.5,0.38423795]
[1717879334650,1.4208228,3676.0,3675.3,2.72082]
[1717879336965,1.4206301,3676.0,3675.4,0.38429872]
[1717879339666,1.4206301,3675.9,3675.2,0.641]
[1717879339853,1.4206301,3675.9,3675.5,0.38423795]
[1717879340179,1.4206301,3675.9,3675.6,0.38417719]
[1717879340349,1.4206301,3675.9,3675.2,0.641]
[1717879340550,1.4206301,3675.9,3675.7,0.38411642]
[1717879340882,1.08074513,3675.9,3675.2,0.641]
[1717879341081,1.4206301,3675.9,3675.8,0.38405566]
[1717879341249,1.4206301,3675.9,3675.2,0.641]
[1717879341593,1.4206301,3675.9,3675.3,0.3843595]
[1717879343189,1.4206301,3675.8,3675.3,0.3843595]
[1717879343337,1.4206301,3675.8,3675.2,0.641]
[1717879343539,1.4206301,3675.8,3675.4,0.38429872]
[1717879343780,1.4206301,3675.8,3675.2,0.641]
[1717879344092,1.4206301,3675.8,3675.5,0.38430882]
[1717879344385,1.4206301,3675.8,3675.6,0.38424805]
[1717879344582,1.4206301,3675.8,3675.2,0.641]
[1717879344755,1.4206301,3675.8,3675.7,0.38418729]
[1717879344956,6.36131,3676.1,3675.2,0.641]
[1717879345160,1.42099105,3675.8,3675.2,0.641]
[1717879345363,1.42099105,3675.8,3675.3,0.38443036]
[1717879345575,1.42099105,3675.8,3675.2,0.641]
[1717879345890,1.42099105,3675.8,3675.4,0.38436959]
[1717879346193,1.42099105,3675.8,3675.5,0.38430882]
[1717879346359,3.77049105,3675.8,3675.1,2.3715]
[1717879346557,2.3495,3675.8,3675.6,0.38424805]
[1717879346880,0.49994185,3675.7,3675.1,2.3715]
[1717879347068,1.42113677,3675.5,3675.1,2.3715]
[1717879351412,1.42113677,3675.6,3675.1,2.3715]
[1717879352563,1.42113677,3675.6,3674.7,2.66786]
[1717879352791,1.42113677,3675.6,3674.9,0.641]
[1717879353070,2.72058,3675.7,3674.9,0.641]
[1717879353071,1.42113677,3675.5,3674.9,0.641]
[1717879353299,2.07025845,3675.5,3674.7,2.3634]
[1717879353518,0.64912168,3675.5,3674.7,3.0044]
[1717879353665,1.4208486,3675.4,3674.7,3.0044]
[1717879354002,1.4208486,3675.4,3674.8,0.38472753]
[1717879356513,1.4208486,3675.5,3674.8,0.38472753]
[1717879357120,1.4208486,3675.5,3674.9,0.641]
[1717879357470,1.4208486,3675.5,3675.0,0.38460595]
[1717879359604,1.4208486,3675.6,3675.0,0.38460595]
[1717879360107,1.42014694,3675.6,3675.0,0.38460595]
[1717879368506,1.42014694,3675.6,3675.1,2.4705]
[1717879368679,1.41968728,3675.6,3675.1,2.4705]
[1717879369004,1.41968728,3675.6,3675.2,0.38451139]
[1717879370420,3.30854493,3675.7,3675.2,0.38451139]
[1717879370634,1.41922537,3675.6,3675.2,0.38451139]
[1717879371731,3.30854493,3675.7,3675.2,0.38451139]
[1717879371930,1.41921658,3675.6,3675.2,0.38451139]
[1717879381367,1.41921658,3675.6,3674.8,5.19169]
[1717879381368,2.00718228,3675.6,3674.8,5.19169]
[1717879381552,2.00718228,3675.6,3675.3,0.38435951]
[1717879381914,0.5879657,3675.6,3674.8,5.19169]
[1717879382244,1.41978489,3675.5,3674.8,5.774959]
[1717879382750,1.41978489,3675.5,3674.9,0.38460263]
[1717879389266,1.41978489,3675.4,3674.9,0.38460263]
[1717879390065,1.41978489,3675.3,3674.9,0.38460263]
[1717879390930,0.58796664,3675.6,3674.9,0.38460263]
[1717879391254,1.42074987,3675.2,3674.9,0.38460263]
[1717879391569,1.42074987,3675.2,3675.0,0.38454858]
[1717879391570,0.641,3675.2,3675.0,0.38454858]
[1717879391865,2.34589985,3675.2,3674.3,2.3337]
[1717879392069,1.42073556,3674.9,3674.3,2.3337]
[1717879392568,1.42073556,3674.8,3674.5,0.641]
[1717879393183,1.42073556,3675.0,3674.5,0.641]
[1717879393668,4.14174556,3675.1,3674.5,0.641]
[1717879397363,4.14174556,3675.1,3674.6,2.3337]
[1717879397742,2.72101,3675.1,3674.6,2.3337]
[1717879403544,4.14174556,3675.1,3674.6,2.3337]
[1717879403927,2.72101,3675.1,3674.3,0.641]
[1717879404069,7.09572308,3675.1,3674.3,0.641]
[1717879404846,7.09572308,3675.1,3674.4,0.38499775]
[1717879405055,1.42073556,3675.0,3674.4,0.38499775]
[1717879405554,1.42073556,3675.0,3674.2,2.3337]
[1717879405942,1.42073556,3675.0,3674.3,0.38505855]
[1717879406980,2.72116,3674.9,3674.3,0.38505855]
[1717879409996,2.72116,3674.9,3674.3,1.02605855]
[1717879417807,0.94409969,3675.0,3674.3,1.02605855]
[1717879418380,1.42073556,3675.2,3674.3,1.02605855]
[1717879418707,1.42073556,3675.2,3674.3,0.641]
[1717879420268,1.42073556,3675.2,3674.4,2.3826]
[1717879420469,1.42073556,3675.2,3674.4,2.76761461]
[1717879421107,1.42073556,3675.2,3674.5,0.641]
[1717879421406,1.41906047,3675.2,3674.5,1.02595381]
[1717879421702,4.13995047,3675.3,3674.5,1.02595381]
[1717879421900,5.15179092,3675.3,3674.5,1.02595381]
[1717879422208,1.41906047,3675.2,3674.5,1.02595381]
[1717879422756,5.73982204,3675.3,3674.5,1.02595381]
[1717879424287,2.00709159,3675.3,3674.7,3.0236]
[1717879424486,1.41906047,3675.4,3674.7,3.0236]
[1717879426425,1.41906047,3675.5,3674.7,3.0236]
[1717879427025,1.41906047,3675.5,3674.8,0.38474442]
[1717879430595,1.41957543,3675.5,3674.8,0.38474442]
[1717879430802,1.41957633,3675.5,3674.8,0.38474442]
[1717879433391,2.60893212,3675.5,3674.8,0.38474442]
[1717879434609,1.41957633,3675.4,3674.8,0.38474442]
[1717879435087,2.60893212,3675.5,3674.8,0.38474442]
[1717879436412,3.24993212,3675.5,3674.8,0.38474442]
[1717879439730,2.60893212,3675.5,3674.8,0.38474442]
[1717879441849,1.41957633,3675.5,3675.1,0.641]
[1717879442005,1.7034916,3675.9,3675.1,0.641]
[1717879442006,1.41957633,3675.9,3675.2,2.4871]
[1717879442197,3.58926201,3676.0,3675.2,2.4871]
[1717879442198,4.42087633,3676.0,3675.2,2.4871]
[1717879442403,4.42087633,3676.0,3675.3,0.38443374]
[1717879442617,1.41957633,3675.9,3675.3,0.38443374]
[1717879443139,3.0,3675.9,3675.3,0.38443374]
[1717879443995,4.41957633,3675.9,3675.3,0.38443374]
[1717879444197,3.0,3675.9,3675.3,0.38443374]
[1717879446629,3.0,3675.9,3675.2,2.4871]
[1717879448508,4.52546679,3676.0,3675.2,2.4871]
[1717879455839,3.0,3676.0,3675.2,2.4871]
[1717879456149,3.0,3676.0,3675.3,3.28570337]
[1717879456475,3.0,3676.0,3675.5,2.2603]
[1717879457205,3.0,3676.0,3675.6,0.38422106]
[1717879461276,2.7203,3676.1,3675.6,0.38422106]
[1717879466777,2.7203,3676.1,3675.7,2.2768]
[1717879466991,2.7203,3676.1,3675.7,2.6608928]
[1717879470587,1.41807901,3676.2,3675.7,2.6608928]
[1717879475296,1.41807901,3676.1,3675.7,2.6608928]
[1717879476054,1.41993446,3676.1,3675.7,2.6608928]
[1717879480160,1.41993446,3676.2,3675.7,2.6608928]
[1717879480355,1.41993446,3676.2,3675.7,2.99108208]
[1717879481263,1.41993446,3676.2,3675.8,2.2768]
[1717879481682,1.41993446,3676.2,3675.9,0.38382955]
[1717879482208,1.41993446,3676.2,3676.0,0.3837688]
[1717879482564,1.41993446,3676.2,3675.8,2.2768]
[1717879482759,1.41993446,3676.2,3675.9,0.70862848]
[1717879485208,1.41993446,3676.1,3675.9,0.70862848]
[1717879485501,1.41993446,3676.2,3676.0,2.4891]
[1717879485701,1.41993446,3676.2,3676.1,0.38387285]
[1717879485901,1.41993446,3676.3,3676.1,0.76758764]
[1717879486199,4.41993446,3676.4,3676.1,0.38371479]
[1717879488676,1.41993446,3676.4,3676.1,0.38371479]
[1717879488877,1.41993446,3676.6,3676.4,2.4891]
[1717879489191,1.41993446,3677.2,3676.7,2.4891]
[1717879489362,1.41993446,3677.2,3676.8,0.38316818]
[1717879489561,1.41993446,3677.1,3676.7,2.4891]
[1717879489865,1.41993446,3677.1,3676.8,0.38316818]
[1717879490292,1.41993446,3677.1,3676.7,2.4891]
[1717879490491,1.41993446,3677.2,3676.9,0.38310746]
[1717879490769,1.41993446,3677.2,3676.7,2.4891]
[1717879490969,2.06093446,3677.2,3676.8,0.38316818]
[1717879491201,2.06093446,3677.2,3676.7,2.4891]
[1717879491406,2.71954,3677.1,3676.8,0.38316818]
[1717879491612,2.71954,3677.1,3676.7,2.4891]
[1717879491785,2.71954,3677.1,3676.8,0.38316818]
[1717879492108,2.71954,3677.1,3676.7,2.4891]
[1717879492264,2.71954,3677.1,3676.9,0.38310746]
[1717879492461,2.71954,3677.1,3676.8,0.38316818]
[1717879492667,2.71954,3677.1,3676.4,2.9741]
[1717879492874,2.71954,3677.1,3676.9,0.38310746]
[1717879493100,2.71954,3677.1,3676.4,3.54353]
[1717879493309,2.71954,3677.1,3677.0,0.38304674]
[1717879493511,5.71954,3677.1,3676.4,3.54353]
[1717879493707,5.71954,3677.1,3677.0,0.38304674]
[1717879494211,5.71954,3677.1,3676.5,0.626373]
[1717879494413,3.0,3677.0,3676.6,0.38328964]
[1717879502642,5.9859,3677.0,3676.6,0.38328964]
[1717879502787,0.641,3676.8,3676.6,0.38328964]
[1717879502992,2.71996,3676.6,3675.6,0.641]
[1717879503210,0.641,3676.5,3675.7,0.38383636]
[1717879503435,0.641,3676.5,3675.7,0.984557]
[1717879503829,0.641,3676.3,3675.7,0.984557]
[1717879504124,3.0,3676.3,3675.7,0.984557]
[1717879504332,3.0,3676.3,3675.7,1.24172064]
[1717879504537,3.0,3676.3,3675.8,0.3835968]
[1717879504893,3.0,3676.3,3675.7,1.24172064]
[1717879505089,3.0,3676.3,3675.8,0.73392886]
[1717879506308,3.0,3676.3,3675.9,3.119]
[1717879506705,3.0,3676.3,3676.0,0.38347529]
[1717879510626,2.71975,3676.8,3676.0,0.38347529]
[1717879510804,2.71975,3676.8,3676.3,0.641]
[1717879511001,2.71975,3676.8,3676.4,0.38302315]
[1717879512337,3.0,3676.7,3676.4,0.38302315]
[1717879515303,3.0,3676.7,3676.2,2.478]
[1717879515535,3.0,3676.7,3676.5,0.38296242]
[1717879515734,3.0,3676.7,3676.2,2.478]
[1717879515941,3.0,3676.7,3676.2,2.8449]
[1717879516236,3.0,3676.7,3676.3,0.38301643]
[1717879516644,3.0,3676.7,3676.2,0.3669]
[1717879516810,3.0,3676.7,3676.4,0.38295569]
[1717879517009,3.0,3676.7,3676.2,0.3669]
[1717879517210,3.0,3676.7,3676.3,0.38301643]
[1717879517433,3.0,3676.7,3676.2,0.3669]
[1717879517635,3.0,3676.7,3676.3,0.38301643]
[1717879517837,2.71991,3676.6,3675.8,0.641]
[1717879518140,2.2716,3676.5,3676.4,0.38295569]
[1717879518309,2.2716,3676.5,3675.7,0.641]
[1717879518509,2.2716,3676.5,3675.8,0.38328308]
[1717879520110,5.2716,3676.5,3675.8,0.38328308]
[1717879520633,5.2716,3676.5,3675.7,0.641]
[1717879520944,5.2716,3676.5,3675.8,0.38336065]
[1717879522319,5.2716,3676.5,3675.9,0.641]
[1717879522729,5.2716,3676.5,3676.0,0.38323914]
[1717879523507,2.72007,3676.4,3676.0,0.38323914]
[1717879523708,3.36107,3676.4,3676.0,0.38323914]
[1717879523927,3.36107,3676.4,3675.5,0.641]
[1717879524130,3.36107,3676.4,3676.1,0.38317165]
[1717879524333,2.2716,3676.3,3675.6,0.583979]
[1717879524540,2.2716,3676.3,3675.5,0.641]
[1717879524751,2.2716,3676.3,3675.7,0.38341467]
[1717879525053,2.2716,3676.3,3675.8,0.38335391]
[1717879525546,2.2716,3676.3,3675.5,0.641]
[1717879526142,2.2716,3676.3,3675.6,0.38347543]
[1717879527006,2.2716,3676.3,3675.5,0.641]
[1717879527209,2.2716,3676.3,3675.6,0.38347543]
[1717879528211,3.36122,3676.2,3675.6,0.38347543]
[1717879528414,3.0,3676.1,3675.2,3.119]
[1717879528614,3.0,3676.1,3675.3,0.38379604]
[1717879528813,2.72036,3676.0,3675.3,0.73407564]
[1717879529436,2.72036,3676.0,3675.3,0.3502796]
[1717879542491,2.368,3675.9,3675.3,0.3502796]
[1717879544755,2.368,3675.9,3675.2,0.641]
[1717879544970,2.72075,3675.5,3674.9,2.3732]
[1717879545186,2.4682,3675.4,3674.6,2.4553]
[1717879545484,3.1092,3675.4,3674.7,0.90160376]
[1717879546447,2.4682,3675.4,3674.7,0.90160376]
[1717879549672,2.72086,3675.3,3674.7,0.90160376]
[1717879550461,2.72086,3675.3,3674.8,0.641]
[1717879550686,2.72086,3675.3,3674.8,1.31293538]
[1717879550890,2.72086,3675.3,3674.9,0.38380718]
[1717879561868,2.4682,3675.2,3674.9,0.38380718]
[1717879584223,2.72086,3675.3,3674.9,0.38380718]
[1717879589641,2.2592,3675.4,3674.9,0.38380718]
[1717879596035,3.67984771,3675.4,3674.9,0.38380718]
[1717879598865,1.42064771,3675.4,3674.9,0.38380718]
[1717879599738,1.42064771,3675.3,3674.9,0.38380718]
[1717879600854,1.42064771,3675.4,3674.9,0.38380718]
[1717879601443,1.42064771,3675.3,3674.9,0.38380718]
[1717879601638,1.42064771,3675.4,3674.9,0.38380718]
[1717879601881,1.42064771,3675.4,3675.0,2.3066]
[1717879602046,1.42064771,3675.9,3675.3,2.3066]
[1717879602244,1.42064771,3676.0,3675.7,0.641]
[1717879602445,4.14094771,3676.1,3675.7,2.9476]